[Event "44th Chess Olympiad Women 2022"]
[Site "Chennai"]
[Date "2022.08.09"]
[Round "11.23"]
[White "Diaz Charpentier, Kristel Meliss"]
[Black "Bobomurodova, Maftuna"]
[Result "1/2-1/2"]
[ECO "A09"]
[WhiteElo "1989"]
[BlackElo "1914"]
[Annotator "TA"]
[PlyCount "90"]
[EventDate "2022.07.29"]
[EventType "team-tourn"]
[EventCountry "IND"]
[SourceTitle "playchess.com"]
[Source "ChessBase"]
[SourceQuality "1"]
[WhiteTeam "Costa Rica"]
[BlackTeam "Uzbekistan"]
[WhiteTeamCountry "CRI"]
[BlackTeamCountry "UZB"]
[TimeControl "40/5400+30:1800+30"]

{[%evp 16,90,11,6,4,0,0,-8,27,22,54,52,54,22,18,18,52,37,62,59,88,76,79,8,0,0,0,0,0,6,6,3,70,60,50,16,24,0,0,-8,12,0,35,-29,0,0,23,12,38,-3,-2,-11,-4,-18,0,0,0,0,0,0,0,0,0,0,0,-38,0,0,0,0,0,0,0,0,0,0,0]} 1. Nf3 {[%emt 0:00:17]} d5 {[%emt 0:00:21]} 2. c4 {[%emt 0:00:05]} dxc4 {[%emt 0:00:07]} 3. Na3 {[%emt 0:00:11]} c5 {[%emt 0:01:23]} 4. Nxc4 {[%emt 0:00:11]} Nc6 {[%emt 0:00:09]} 5. g3 {[%emt 0:00:57]} g6 {[%emt 0:03:36]} 6. b3 {[%emt 0:01:15]} Bg7 {[%emt 0:01:25]} 7. Bb2 {[%emt 0:00:13]} Nf6 {[%emt 0:05:24]} 8. Bg2 {[%emt 0:00:04]} O-O {[%emt 0:07:43]} 9. O-O {[%emt 0:00:11]} Be6 {[%emt 0:01:39] A09: Réti Opening: 1 Nf3 d5 2 c4.} 10. Rc1 {[%emt 0:00:26]} Rc8 {[%emt 0:00:38] [#]} 11. Re1 $146 {[%emt 0:04:15]} ({Predecessor:} 11. d3 b6 12. Qd2 Qd7 13. Rfd1 Rfd8 14. Nfe5 Nxe5 15. Nxe5 Qd6 16. b4 Nd7 17. Nxd7 Bxb2 18. Qxb2 Bxd7 19. bxc5 Rxc5 20. Rxc5 Qxc5 {1-0 (42) Carlsen,M (2865)-Artemiev,V (2700) chess24.com INT 2022}) 11... a6 {[%emt 0:04:05]} 12. Ne3 {[%emt 0:05:22]} Qa5 {[%emt 0:01:15]} 13. Ng5 {[%emt 0:03:29]} Bd7 {[%emt 0:03:28]} 14. Bc3 {[%emt 0:06:00]} Qd8 {[%emt 0:06:04]} (14... Qxa2 $2 15. Ra1 Qxa1 16. Qxa1 $18) 15. d3 {[%emt 0:04:15]} e6 {[%emt 0:09:23]} 16. h4 {[%emt 0:02:53]} Qe7 {[%emt 0:02:48]} 17. Nc4 {[%emt 0:07:28]} b5 {[%emt 0:11:59]} 18. Nb6 {[%emt 0:05:02]} Rc7 {[%emt 0:01:35]} 19. Nxd7 {[%emt 0:00:10] White is more active.} (19. Bxf6 $16 Bxf6 20. Ne4 (20. Nxd7 Qxd7 21. Ne4 Be7 $14)) 19... Nxd7 $11 {[%emt 0:00:27]} 20. Bxg7 {[%emt 0:00:05]} Kxg7 {[%emt 0:00:05]} 21. Qd2 {[%emt 0:01:54][%cal Oh4h5]} Rfc8 {[%emt 0:04:06]} 22. Ne4 {[%emt 0:04:53]} Nd4 {[%emt 0:03:47]} 23. e3 {[%emt 0:01:21]} Nf5 {[%emt 0:01:05]} (23... Nc6 $1 $11) 24. Qb2+ {[%emt 0:01:06]} Kg8 {[%emt 0:03:20]} 25. Red1 {[%emt 0:01:46]} Nd6 {[%emt 0:00:43]} 26. Ng5 {[%emt 0:08:47]} Nf6 {[%emt 0:06:58]} 27. e4 {[%emt 0:03:33] [#] Strongly threatening e5.} e5 {[%emt 0:01:02]} 28. f4 {[%emt 0:00:24]} Nd7 {[%emt 0:02:43]} 29. Nf3 {[%emt 0:00:44]} ({White should try} 29. Bh3 $14) 29... f6 {[%emt 0:01:06]} 30. Bh3 {[%emt 0:00:32]} Nf7 {[%emt 0:01:37]} 31. Qe2 {[%emt 0:04:29]} Qd6 {[%emt 0:01:26]} 32. Bxd7 {[%emt 0:03:50]} (32. Qe3 {seems wilder.} exf4 33. gxf4 Rd8 34. Rd2) 32... Qxd7 {[%emt 0:01:20]} 33. fxe5 {[%emt 0:00:45]} Nxe5 {[%emt 0:01:23]} 34. Nxe5 {[%emt 0:00:38]} fxe5 {[%emt 0:00:01]} 35. Kg2 {[%emt 0:00:27]} Qd4 {[%emt 0:01:54]} 36. Rf1 {[%emt 0:03:57]} Rf8 {[%emt 0:03:46]} 37. Rxf8+ {[%emt 0:02:22]} Kxf8 {[%emt 0:00:01][%cal Bg8f8,Bf8f7,Bf7g7,Bg7g6][%mdl 4128] Endgame KQR-KQR} 38. Rf1+ {[%emt 0:00:12]} Rf7 {[%emt 0:01:08]} 39. Rxf7+ {[%emt 0:01:48]} Kxf7 {[%emt 0:00:01] KQ-KQ} 40. Qf2+ {[%emt 0:01:33]} Kg7 {[%emt 0:01:58]} 41. Qxd4 {[%emt 0:33:40] The position is equal.} cxd4 {[%emt 0:30:36]} 42. b4 {[%emt 0:00:20]} g5 {[%emt 0:00:54]} 43. Kf3 {[%emt 0:00:43]} Kg6 {[%emt 0:00:10]} 44. Kg4 {[%emt 0:00:41]} h5+ {[%emt 0:00:08]} 45. Kf3 {[%emt 0:00:05]} g4+ {[%emt 0:00:04] Weighted Error Value: White=0.14 (very precise) /Black=0.14 (very precise)} 1/2-1/2

[Event "44th Chess Olympiad Women 2022"]
[Site "Chennai"]
[Date "2022.08.09"]
[Round "11.23"]
[White "Khamdamova, Afruza"]
[Black "Rodriguez Arrieta, Maria Elena"]
[Result "1-0"]
[ECO "C77"]
[WhiteElo "1969"]
[BlackElo "1849"]
[Annotator "TA"]
[PlyCount "147"]
[EventDate "2022.07.29"]
[EventType "team-tourn"]
[EventCountry "IND"]
[SourceTitle "playchess.com"]
[Source "ChessBase"]
[SourceQuality "1"]
[WhiteTeam "Uzbekistan"]
[BlackTeam "Costa Rica"]
[WhiteTeamCountry "UZB"]
[BlackTeamCountry "CRI"]
[TimeControl "40/5400+30:1800+30"]

{[%evp 14,147,16,-5,-2,-6,25,33,33,29,57,45,60,32,31,18,25,25,88,69,66,52,45,45,81,79,114,124,129,92,125,129,127,95,93,102,147,150,149,136,143,144,149,138,135,141,141,118,129,128,164,176,168,167,185,153,156,159,155,133,143,144,141,126,134,123,167,167,234,167,298,229,372,305,299,175,173,160,141,0,0,0,0,0,0,0,0,0,0,0,0,0,0,0,0,0,0,0,12837,12837,12837,0,0,0,0,0,12850,27996,27997,27997,27999,27999,27998,27998,27999,27999,27997,27997,27999,27997,27998,27998,27996,27999,27996,27996,27998,27997,27998,27998,27996,27996,27997,27997,27998,27998]} 1. e4 {[%emt 0:00:02]} e5 {[%emt 0:01:02]} 2. Nf3 {[%emt 0:00:06]} Nc6 {[%emt 0:00:04]} 3. Bb5 {[%emt 0:00:06][%cal Bf1b5,Bb5a4,Ba4b3,Bb3d5][%mdl 32]} a6 {[%emt 0:00:04]} 4. Ba4 {[%emt 0:00:05]} Nf6 {[%emt 0:00:05]} 5. d3 {[%emt 0:00:03]} b5 {[%emt 0:00:49]} 6. Bb3 {[%emt 0:00:04]} Be7 {[%emt 0:00:03]} 7. Nc3 {[%emt 0:07:11] Recently 7.a4 got a lot of attention.} d6 {[%emt 0:00:38]} 8. a4 {[%emt 0:01:07]} b4 {[%emt 0:06:18] C77: Ruy Lopez: 3...a6 4 Ba4 Nf6, unusual lines.} 9. Nd5 {[%emt 0:00:08]} Nxd5 {[%emt 0:00:08]} (9... Na5 $5 {[%cal Ra5b3]}) 10. Bxd5 {[%emt 0:00:04]} Bb7 {[%emt 0:00:05] White is slightly better.} 11. c3 {[%emt 0:01:15]} a5 {[%emt 0:04:12] [#]} 12. Bd2 $146 {[%emt 0:10:06]} ({Predecessor:} 12. d4 Rb8 13. Be3 O-O 14. O-O Bf6 15. dxe5 dxe5 16. Qc2 Qc8 17. Bc5 Re8 18. Nd2 {1-0 (41) Auckland,E (2010)-Dines,S (1935) England 2009}) 12... Rb8 {[%emt 0:01:33]} 13. Rc1 {[%emt 0:02:19]} bxc3 {[%emt 0:05:24]} 14. Bxc3 {[%emt 0:00:50]} Nb4 {[%emt 0:00:05]} 15. Bxb4 {[%emt 0:00:25]} axb4 {[%emt 0:00:06]} (15... Bxd5 $11 {remains equal.} 16. Bxa5 Bb3) 16. Bxb7 {[%emt 0:08:10] White is more active.} Rxb7 {[%emt 0:00:06]} 17. d4 {[%emt 0:02:06]} exd4 {[%emt 0:01:26]} 18. Nxd4 {[%emt 0:00:17]} Bf6 {[%emt 0:00:07]} 19. O-O {[%emt 0:01:37][%cal Oe4e5]} Bxd4 {[%emt 0:02:35]} 20. Qxd4 {[%emt 0:00:07]} O-O {[%emt 0:00:04]} 21. Qd5 {[%emt 0:04:43]} Qa8 {[%emt 0:01:40]} 22. b3 $1 {[%emt 0:00:47]} Re8 {[%emt 0:00:23]} 23. Rc4 {[%emt 0:02:17][%cal Bc1c4,Bc4b4,Bb4b7][%mdl 32]} Re5 {[%emt 0:02:36]} 24. Qc6 {[%emt 0:00:19]} Re7 {[%emt 0:01:24]} 25. Rxb4 {[%emt 0:00:31]} Ra7 {[%emt 0:00:23]} 26. Qxa8+ {[%emt 0:06:35]} Rxa8 $16 {[%emt 0:00:02][%mdl 4096] Endgame KRR-KRR} 27. f3 {[%emt 0:00:10]} Kf8 {[%emt 0:00:48]} 28. Rc1 {[%emt 0:00:55]} Ke8 {[%emt 0:00:13]} 29. Rb7 {[%emt 0:00:58]} Kd8 {[%emt 0:00:11]} 30. Kf2 {[%emt 0:06:43]} Kc8 {[%emt 0:03:56]} 31. Rb5 {[%emt 0:00:24]} Kd7 {[%emt 0:00:53]} 32. Ke3 {[%emt 0:00:30]} Ra7 {[%emt 0:02:29]} 33. Kd3 {[%emt 0:00:52]} Re6 {[%emt 0:02:52]} 34. Rf5 {[%emt 0:02:13]} Re7 {[%emt 0:00:56]} 35. Rh5 {[%emt 0:00:43]} h6 {[%emt 0:00:20]} 36. Ra1 {[%emt 0:02:59]} Rb7 {[%emt 0:01:30]} 37. Kc3 {[%emt 0:00:05]} Re8 {[%emt 0:00:13]} 38. b4 {[%emt 0:04:13]} Reb8 {[%emt 0:00:07]} 39. b5 {[%emt 0:04:31]} Ra8 {[%emt 0:00:50]} 40. a5 {[%emt 0:03:33][%cal Ba4a5,Ba5a6][%mdl 32]} Rba7 {[%emt 0:00:57]} (40... c6 {was worth a try.} 41. bxc6+ Kxc6) 41. a6 {[%emt 0:30:14]} Rb8 {[%emt 0:30:18]} (41... c6 $142) 42. Rd5 $18 {[%emt 0:04:07] Hoping for e5.} Rb6 {[%emt 0:00:38]} (42... c6 {keeps fighting.}) 43. Rad1 {[%emt 0:00:44]} Ke7 {[%emt 0:02:42]} 44. e5 {[%emt 0:01:00]} (44. h4 $142) 44... c6 {[%emt 0:10:01]} 45. exd6+ {[%emt 0:03:09]} Kd8 {[%emt 0:00:08]} 46. bxc6 {[%emt 0:12:11]} (46. Re5 $16 {[%cal Od6d7] White wants to mate with d7!} cxb5 47. Re7 Raxa6 48. Rxf7) 46... Rxc6+ $11 {[%emt 0:00:08]} 47. Kd4 {[%emt 0:00:41]} Raxa6 {[%emt 0:00:04]} 48. Ke5 {[%emt 0:00:27]} Ra2 {[%emt 0:00:29]} 49. R1d2 {[%emt 0:09:19]} Rcc2 {[%emt 0:01:04]} 50. Rxc2 {[%emt 0:02:42]} Rxc2 {[%emt 0:00:02] KR-KR} 51. Ra5 {[%emt 0:00:11] Strongly threatening Ra8+.} Rxg2 {[%emt 0:00:30] And now ...Rg5+ would win.} 52. Ra8+ {[%emt 0:00:04]} Kd7 {[%emt 0:00:06]} 53. Ra7+ {[%emt 0:00:04]} Kd8 {[%emt 0:02:07]} 54. Rxf7 {[%emt 0:00:59] Threatens to win with h4.} Rxh2 {[%emt 0:01:29]} 55. Rxg7 {[%emt 0:00:05]} Re2+ $2 {[%emt 0:00:05][%mdl 8192]} (55... h5 $11) 56. Kf5 $18 {[%emt 0:01:34]} h5 {[%emt 0:00:41] [#]} 57. Rh7 $2 {[%emt 0:00:39]} (57. Rg6 $1 $18 Kd7 58. Rf6) 57... Rd2 $11 {[%emt 0:00:08]} 58. Ke5 {[%emt 0:00:00]} Re2+ {[%emt 0:00:00]} 59. Kf4 {[%emt 0:00:00]} Rd2 $2 {[%emt 0:00:00][%mdl 8192] White now steadily converts the win.} (59... Rh2 $11) 60. Rxh5 $18 {[%emt 0:00:00]} ({Less strong is} 60. Ke5 Re2+ 61. Kf4 Rh2 $16) 60... Rxd6 {[%emt 0:00:00] [#] White mates.} 61. Re5 $1 {[%emt 0:00:00]} Ra6 {[%emt 0:00:00]} 62. Kg5 {[%emt 0:00:00]} Ra3 {[%emt 0:00:00]} 63. f4 {[%emt 0:00:00][%cal Bf3f4,Bf4f5,Bf5f6,Bf6f7][%mdl 32]} Rg3+ {[%emt 0:00:00]} 64. Kf6 {[%emt 0:00:00]} Rf3 {[%emt 0:00:00]} 65. f5 {[%emt 0:00:00]} Rf1 {[%emt 0:00:00]} 66. Kg7 {[%emt 0:00:00]} Rg1+ {[%emt 0:00:00]} 67. Kf7 {[%emt 0:00:00]} Rf1 {[%emt 0:00:00]} 68. Rd5+ {[%emt 0:00:00]} Kc7 {[%emt 0:00:00]} 69. f6 {[%emt 0:00:00]} Rf2 {[%emt 0:00:00]} 70. Ke7 {[%emt 0:00:00]} Re2+ {[%emt 0:00:00]} 71. Kf8 {[%emt 0:00:00]} Rf2 {[%emt 0:00:00]} 72. f7 {[%emt 0:00:00]} Rf1 {[%emt 0:00:00]} 73. Ke7 {[%emt 0:00:00]} Re1+ {[%emt 0:00:00]} 74. Kf6 {[%emt 0:00:00] Weighted Error Value: White=0.23 (precise) /Black=0.17 (very precise)} 1-0

[Event "44th Chess Olympiad Women 2022"]
[Site "Chennai"]
[Date "2022.08.09"]
[Round "11.23"]
[White "Ramirez Gonzalez, Maria Jose"]
[Black "Malikova, Marjona"]
[Result "1/2-1/2"]
[ECO "E16"]
[WhiteElo "1809"]
[BlackElo "1756"]
[Annotator "NA RC COMBH"]
[PlyCount "62"]
[EventDate "2022.07.29"]
[EventType "team-tourn"]
[EventCountry "IND"]
[SourceTitle "playchess.com"]
[Source "ChessBase"]
[SourceQuality "1"]
[WhiteTeam "Costa Rica"]
[BlackTeam "Uzbekistan"]
[WhiteTeamCountry "CRI"]
[BlackTeamCountry "UZB"]
[TimeControl "40/5400+30:1800+30"]

1. d4 {[%emt 0:00:03]} Nf6 {[%emt 0:00:05]} 2. c4 {[%emt 0:00:05]} e6 {[%emt 0:00:02]} 3. Nf3 {[%emt 0:00:08]} b6 {[%emt 0:00:08]} 4. g3 {[%emt 0:00:20]} Bb7 {[%emt 0:00:46]} 5. Bg2 {[%emt 0:00:26]} Bb4+ {[%emt 0:01:15]} 6. Nbd2 {[%emt 0:00:42]} O-O {[%emt 0:01:27]} 7. O-O {[%emt 0:00:08]} d5 {[%emt 0:03:37]} 8. Qc2 {[%emt 0:05:25]} Bxd2 {[%emt 0:08:25]} 9. Bxd2 {[%emt 0:02:59]} dxc4 {[%emt 0:01:04]} 10. Rfd1 {[%emt 0:20:04]} Bd5 {[%emt 0:04:33]} 11. Rac1 {[%emt 0:08:28]} Nc6 {[%emt 0:05:15]} 12. Bg5 {[%emt 0:01:34]} Bxf3 {[%emt 0:12:53]} 13. exf3 {[%emt 0:09:33]} Nxd4 {[%emt 0:05:34]} 14. Qxc4 {[%emt 0:03:01]} c5 {[%emt 0:00:12]} 15. Kf1 {[%emt 0:05:15]} Rc8 {[%emt 0:12:21]} 16. a4 {[%emt 0:03:17]} a5 {[%emt 0:03:35]} 17. Be3 {[%emt 0:07:00]} e5 {[%emt 0:01:59]} 18. Rd2 {[%emt 0:05:54]} Qd5 {[%emt 0:04:23]} 19. Qc3 {[%emt 0:03:48]} Qe6 {[%emt 0:02:48]} 20. Rcd1 {[%emt 0:03:32]} Nd5 {[%emt 0:02:16]} 21. Qd3 {[%emt 0:01:42]} Nb4 {[%emt 0:06:05]} 22. Qe4 {[%emt 0:01:54]} f5 {[%emt 0:01:15]} 23. Qh4 {[%emt 0:01:03]} Qc4+ {[%emt 0:04:25]} 24. Kg1 {[%emt 0:01:16]} Ne2+ {[%emt 0:01:51]} 25. Kh1 {[%emt 0:03:01]} Qxh4 {[%emt 0:00:17]} 26. gxh4 {[%emt 0:00:01]} Nd4 {[%emt 0:00:38]} 27. f4 {[%emt 0:00:58]} e4 {[%emt 0:02:27]} 28. Bf1 {[%emt 0:02:25]} Nbc2 {[%emt 0:04:15]} 29. Bc4+ {[%emt 0:00:35]} Kh8 {[%emt 0:00:07]} 30. h5 {[%emt 0:02:49]} g6 {[%emt 0:03:14]} 31. h6 {[%emt 0:00:19]} g5 {[%emt 0:00:28]} 1/2-1/2

[Event "44th Chess Olympiad Women 2022"]
[Site "Chennai"]
[Date "2022.08.09"]
[Round "11.24"]
[White "Hoang, Thi Bao Tram"]
[Black "Shabanaj, Eglantina"]
[Result "1/2-1/2"]
[ECO "E09"]
[WhiteElo "2288"]
[BlackElo "1940"]
[Annotator "RC"]
[PlyCount "62"]
[EventDate "2022.07.29"]
[EventType "team-tourn"]
[EventCountry "IND"]
[SourceTitle "playchess.com"]
[Source "ChessBase"]
[SourceQuality "1"]
[WhiteTeam "Vietnam"]
[BlackTeam "Albania"]
[WhiteTeamCountry "VIE"]
[BlackTeamCountry "ALB"]
[TimeControl "40/5400+30:1800+30"]

1. Nf3 {[%emt 0:01:03]} d5 {[%emt 0:00:21]} 2. g3 {[%emt 0:03:03]} e6 {[%emt 0:02:10]} 3. Bg2 {[%emt 0:00:49]} Nf6 {[%emt 0:00:10]} 4. O-O {[%emt 0:00:34]} b6 {[%emt 0:00:38]} 5. b3 {[%emt 0:00:11]} Bb7 {[%emt 0:00:09]} 6. Bb2 {[%emt 0:00:09]} Nbd7 {[%emt 0:00:18]} 7. c4 {[%emt 0:00:38]} c6 {[%emt 0:00:29]} 8. d4 {[%emt 0:00:22]} Be7 {[%emt 0:00:35]} 9. Nbd2 {[%emt 0:01:35]} O-O {[%emt 0:01:12]} 10. Qc2 {[%emt 0:00:19]} c5 {[%emt 0:03:25]} 11. Rac1 {[%emt 0:00:50]} Rc8 {[%emt 0:00:25]} 12. Qb1 {[%emt 0:00:19]} Re8 {[%emt 0:01:27]} 13. Rfd1 {[%emt 0:01:37]} Bd6 {[%emt 0:03:39]} 14. e3 {[%emt 0:00:41]} Qc7 {[%emt 0:01:31]} 15. cxd5 {[%emt 0:06:18]} exd5 {[%emt 0:00:54]} 16. Nh4 {[%emt 0:00:39]} Bf8 {[%emt 0:03:57]} 17. Nhf3 {[%emt 0:00:41]} Qb8 {[%emt 0:01:29]} 18. Ne5 {[%emt 0:00:58]} Bd6 {[%emt 0:05:14]} 19. Nxd7 {[%emt 0:01:03]} Nxd7 {[%emt 0:00:14]} 20. Nf3 {[%emt 0:00:09]} Qa8 {[%emt 0:08:21]} 21. Nh4 {[%emt 0:06:24]} g6 {[%emt 0:11:17]} 22. Nf3 {[%emt 0:00:19]} Bf8 {[%emt 0:04:11]} 23. Ne5 {[%emt 0:01:15]} Nxe5 {[%emt 0:01:08]} 24. dxe5 {[%emt 0:00:08]} Bg7 {[%emt 0:00:06]} 25. f4 {[%emt 0:00:09]} Rcd8 {[%emt 0:00:41]} 26. Rd2 {[%emt 0:00:40]} Rd7 {[%emt 0:00:58]} 27. Bh3 {[%emt 0:00:14]} Rde7 {[%emt 0:00:21]} 28. Bg2 {[%emt 0:00:09]} Rd7 {[%emt 0:00:03]} 29. Bh3 {[%emt 0:00:08]} Rde7 {[%emt 0:00:03]} 30. Bg2 {[%emt 0:00:08]} Rd7 {[%emt 0:00:04]} 31. Bh3 {[%emt 0:00:41]} Rde7 {[%emt 0:00:30]} 1/2-1/2

[Event "44th Chess Olympiad Women 2022"]
[Site "Chennai"]
[Date "2022.08.09"]
[Round "11.24"]
[White "Bach, Ngoc Thuy Duong"]
[Black "Caku, Kler"]
[Result "1/2-1/2"]
[ECO "D36"]
[WhiteElo "2192"]
[BlackElo "1626"]
[Annotator "RC"]
[PlyCount "61"]
[EventDate "2022.07.29"]
[EventType "team-tourn"]
[EventCountry "IND"]
[SourceTitle "playchess.com"]
[Source "ChessBase"]
[SourceQuality "1"]
[WhiteTeam "Vietnam"]
[BlackTeam "Albania"]
[WhiteTeamCountry "VIE"]
[BlackTeamCountry "ALB"]
[TimeControl "40/5400+30:1800+30"]

1. d4 {[%emt 0:01:19]} d5 {[%emt 0:04:15]} 2. c4 {[%emt 0:01:18]} e6 {[%emt 0:00:09]} 3. Nc3 {[%emt 0:00:12]} Nf6 {[%emt 0:00:10]} 4. cxd5 {[%emt 0:01:16]} exd5 {[%emt 0:00:09]} 5. Bg5 {[%emt 0:00:39]} Be7 {[%emt 0:00:12]} 6. e3 {[%emt 0:00:13]} c6 {[%emt 0:00:06]} 7. Qc2 {[%emt 0:00:15]} O-O {[%emt 0:00:37]} 8. Bd3 {[%emt 0:00:21]} h6 {[%emt 0:00:28]} 9. Bh4 {[%emt 0:02:09]} Nbd7 {[%emt 0:00:25]} 10. Nf3 {[%emt 0:00:18]} Re8 {[%emt 0:00:58]} 11. O-O {[%emt 0:01:15]} a6 {[%emt 0:01:40]} 12. Bg3 {[%emt 0:01:02]} Nh5 {[%emt 0:00:46]} 13. Be5 {[%emt 0:06:04]} Nf8 {[%emt 0:02:52]} 14. h3 {[%emt 0:04:05]} Nf6 {[%emt 0:01:34]} 15. Rab1 {[%emt 0:01:30]} N6d7 {[%emt 0:01:58]} 16. Bg3 {[%emt 0:18:02]} Ne6 {[%emt 0:02:43]} 17. b4 {[%emt 0:02:04]} Nf6 {[%emt 0:02:15]} 18. a4 {[%emt 0:01:30]} Bd6 {[%emt 0:01:42]} 19. Bxd6 {[%emt 0:00:19]} Qxd6 {[%emt 0:00:10]} 20. a5 {[%emt 0:01:04]} Nd7 {[%emt 0:00:37]} 21. Na4 {[%emt 0:01:23]} Nc7 {[%emt 0:01:34]} 22. Nc3 {[%emt 0:05:20]} Nb5 {[%emt 0:04:04]} 23. Qc1 {[%emt 0:03:18]} Nxc3 {[%emt 0:00:19]} 24. Qxc3 {[%emt 0:00:02]} Nf8 {[%emt 0:00:32]} 25. Qc5 {[%emt 0:00:35]} Qxc5 {[%emt 0:00:11]} 26. bxc5 {[%emt 0:00:03]} g6 {[%emt 0:00:21]} 27. Ne5 {[%emt 0:00:35]} Kg7 {[%emt 0:00:10]} 28. Rfe1 {[%emt 0:00:24]} f6 {[%emt 0:00:58]} 29. Nf3 {[%emt 0:00:09]} Ne6 {[%emt 0:00:21]} 30. Nd2 {[%emt 0:00:09]} Nc7 {[%emt 0:00:12]} 31. Nf3 {[%emt 0:00:40]} 1/2-1/2

[Event "44th Chess Olympiad Women 2022"]
[Site "Chennai"]
[Date "2022.08.09"]
[Round "11.24"]
[White "Gjergji, Rozana"]
[Black "Nguyen, Thien Ngan"]
[Result "1/2-1/2"]
[ECO "C95"]
[WhiteElo "1920"]
[BlackElo "1912"]
[Annotator "TA"]
[PlyCount "61"]
[EventDate "2022.07.29"]
[EventType "team-tourn"]
[EventCountry "IND"]
[SourceTitle "playchess.com"]
[Source "ChessBase"]
[SourceQuality "1"]
[WhiteTeam "Albania"]
[BlackTeam "Vietnam"]
[WhiteTeamCountry "ALB"]
[BlackTeamCountry "VIE"]
[TimeControl "40/5400+30:1800+30"]

{[%evp 29,61,17,11,10,19,19,22,15,32,27,29,0,19,-41,-35,-29,-16,-91,-81,-107,-52,-52,-54,-192,-136,-185,-135,-150,-142,-145,-137,-152,-141,-140]} 1. e4 {[%emt 0:06:23]} e5 {[%emt 0:00:07]} 2. Nf3 {[%emt 0:00:11]} Nc6 {[%emt 0:00:06]} 3. Bb5 {[%emt 0:00:08]} a6 {[%emt 0:00:09]} 4. Ba4 {[%emt 0:00:09]} Nf6 {[%emt 0:00:04]} 5. O-O {[%emt 0:00:10]} Be7 {[%emt 0:00:05]} 6. Re1 {[%emt 0:00:09]} b5 {[%emt 0:00:05]} 7. Bb3 {[%emt 0:00:08]} d6 {[%emt 0:00:04]} 8. h3 {[%emt 0:00:15]} O-O {[%emt 0:00:13]} 9. c3 {[%emt 0:00:13]} Nb8 {[%emt 0:00:08]} 10. d4 {[%emt 0:00:26]} Nbd7 {[%emt 0:00:04]} 11. Nbd2 {[%emt 0:00:44]} Bb7 {[%emt 0:00:09]} 12. Bc2 {[%emt 0:02:13]} Re8 {[%emt 0:00:12]} 13. Nf1 {[%emt 0:00:14]} Bf8 {[%emt 0:00:09]} 14. Ng3 {[%emt 0:00:21]} g6 {[%emt 0:00:12]} 15. Bd2 {[%emt 0:01:04]} Bg7 {[%emt 0:00:12]} 16. Qc1 {[%emt 0:00:45] C95: Closed Ruy Lopez: Breyer Variation with 10 d4.} exd4 {[%emt 0:08:23]} 17. cxd4 {[%emt 0:00:28]} c5 {[%emt 0:00:27]} 18. d5 {[%emt 0:02:06] The position is equal.} c4 {[%emt 0:00:39]} 19. Bh6 {[%emt 0:01:03]} Bh8 {[%emt 0:00:26] [#]} 20. Kh1 $146 {[%emt 0:03:31]} ({Predecessor:} 20. Qd2 Rc8 21. Rac1 Nc5 22. Nd4 Nfd7 23. b4 Nd3 24. Bxd3 Bxd4 25. Bxc4 Qh4 26. Qxd4 Qxh6 27. Qa7 Rc7 28. Rb1 bxc4 29. b5 axb5 30. Rxb5 Ra8 31. Qd4 Qg7 {0-1 (31) Csajbok,L (1820)-Demjen,M (1902) Budapest 2019}) 20... Nc5 {[%emt 0:00:20]} 21. Qd2 {[%emt 0:01:21]} (21. b4 $11 cxb3 22. axb3) 21... Nfd7 $15 {[%emt 0:00:23]} 22. Rab1 {[%emt 0:00:19]} Rc8 {[%emt 0:01:40]} (22... a5 $5 {[%cal Rb5b4]}) 23. Qg5 {[%emt 0:02:59]} (23. Bg5 $11 Qb6 24. Be3) 23... Qxg5 $17 {[%emt 0:04:03]} 24. Bxg5 {[%emt 0:00:11]} Nb6 {[%emt 0:00:09]} (24... Ne5 $17 {Hoping for ...Ned3.} 25. Re3 Ned3) 25. Be3 {[%emt 0:00:27]} c3 {[%emt 0:01:45]} 26. Bd4 {[%emt 0:00:45] White does not recover from this.} (26. b3 $15) 26... cxb2 {[%emt 0:00:17]} ({Better is} 26... Bxd4 $19 27. Nxd4 cxb2 28. Rxb2 Bxd5) 27. Rxb2 {[%emt 0:01:38]} (27. Bxh8 $17 {was worth a try.} Kxh8 28. Rxb2) 27... Nc4 {[%emt 0:00:19]} (27... Bxd4 $19 28. Nxd4 Bxd5) 28. Rbb1 {[%emt 0:00:34][%cal Bb2b1,Bb1c1,Bc1c2][%mdl 32]} Bxd4 {[%emt 0:03:06]} 29. Nxd4 {[%emt 0:00:10]} Na3 {[%emt 0:00:52]} 30. Rbc1 {[%emt 0:00:36]} Nxc2 {[%emt 0:00:50]} 31. Rxc2 {[%emt 0:00:22] Weighted Error Value: White=0.42/Black=0.12 (very precise)} 1/2-1/2

[Event "44th Chess Olympiad Women 2022"]
[Site "Chennai"]
[Date "2022.08.09"]
[Round "11.24"]
[White "Shuqja, Klean"]
[Black "Nguyen, Thi Mai Hung"]
[Result "1/2-1/2"]
[ECO "C02"]
[WhiteElo "1883"]
[BlackElo "2223"]
[Annotator "RC"]
[PlyCount "63"]
[EventDate "2022.07.29"]
[EventType "team-tourn"]
[EventCountry "IND"]
[SourceTitle "playchess.com"]
[Source "ChessBase"]
[SourceQuality "1"]
[WhiteTeam "Albania"]
[BlackTeam "Vietnam"]
[WhiteTeamCountry "ALB"]
[BlackTeamCountry "VIE"]
[TimeControl "40/5400+30:1800+30"]

1. e4 {[%emt 0:05:00]} e6 {[%emt 0:01:41]} 2. d4 {[%emt 0:00:16]} d5 {[%emt 0:00:05]} 3. e5 {[%emt 0:00:07]} c5 {[%emt 0:00:20]} 4. c3 {[%emt 0:00:06]} Nc6 {[%emt 0:00:20]} 5. Nf3 {[%emt 0:00:23]} Qb6 {[%emt 0:00:11]} 6. a3 {[%emt 0:00:32]} c4 {[%emt 0:00:04]} 7. Nbd2 {[%emt 0:00:30]} Na5 {[%emt 0:00:19]} 8. Rb1 {[%emt 0:00:29]} Bd7 {[%emt 0:00:16]} 9. b4 {[%emt 0:07:51]} cxb3 {[%emt 0:02:41]} 10. c4 {[%emt 0:17:03]} dxc4 {[%emt 0:09:35]} 11. Nxc4 {[%emt 0:00:11]} Nxc4 {[%emt 0:00:13]} 12. Bxc4 {[%emt 0:00:08]} Ne7 {[%emt 0:00:42]} 13. Qxb3 {[%emt 0:01:20]} Qxb3 {[%emt 0:00:15]} 14. Bxb3 {[%emt 0:00:34]} Bc6 {[%emt 0:00:28]} 15. O-O {[%emt 0:04:29]} Nd5 {[%emt 0:03:12]} 16. Bb2 {[%emt 0:01:10]} Be7 {[%emt 0:00:11]} 17. Nd2 {[%emt 0:01:24]} O-O {[%emt 0:00:20]} 18. Nc4 {[%emt 0:00:49]} b6 {[%emt 0:00:45]} 19. Rfe1 {[%emt 0:00:54]} Rac8 {[%emt 0:00:24]} 20. Ne3 {[%emt 0:00:17]} Nxe3 {[%emt 0:00:33]} 21. Rxe3 {[%emt 0:00:18]} Rfd8 {[%emt 0:00:15]} 22. f4 {[%emt 0:01:59]} g6 {[%emt 0:00:39]} 23. g4 {[%emt 0:00:15]} Bd5 {[%emt 0:00:33]} 24. Bd1 {[%emt 0:01:45]} Rc7 {[%emt 0:01:00]} 25. Rc1 {[%emt 0:00:50]} Rdc8 {[%emt 0:00:23]} 26. Rxc7 {[%emt 0:00:19]} Rxc7 {[%emt 0:00:05]} 27. Kf2 {[%emt 0:00:29]} b5 {[%emt 0:00:28]} 28. Ke2 {[%emt 0:01:38]} a6 {[%emt 0:00:27]} 29. Kd2 {[%emt 0:00:18]} Kf8 {[%emt 0:00:41]} 30. Rh3 {[%emt 0:00:45]} Kg8 {[%emt 0:00:18]} 31. Re3 {[%emt 0:00:05]} Kf8 {[%emt 0:00:09]} 32. Rh3 {[%emt 0:00:07]} 1/2-1/2